[Event "XTX Markets LCC Super Blitz-S2 2024"]
[Site "London"]
[Date "2024.12.07"]
[Round "1.1"]
[White "Smirin, Ilia"]
[Black "Vachier-Lagrave, Maxime"]
[Result "0-1"]
[Annotator "TA"]
[ECO "B31"]
[WhiteElo "2574"]
[BlackElo "2731"]
[PlyCount "68"]
[EventDate "2024.11.28"]
[EventType "tourn"]
[EventCountry "ENG"]
[SourceTitle "playchess.com"]
[Source "ChessBase"]
[SourceQuality "1"]
[TimeControl "180+2"]

{[%evp 19,68,-11,13,-10,9,-4,0,8,10,0,0,0,0,0,0,0,-8,0,-8,-5,9,5,8,17,7,0,7,5,8,-6,-12,-8,-3,-16,-8,-19,0,-1,0,0,0,0,0,0,0,0,0,-39,-26,-699,-654]} 1. e4 {[%emt 0:00:01]} c5 {[%emt 0:00:01]} 2. Nf3 {[%emt 0:00:01]} Nc6 {[%emt 0:00:01]} 3. Bb5 {[%emt 0:00:01]} g6 {[%emt 0:00:01]} 4. c3 {[%emt 0:00:02][%cal Bc2c3,Bc3d4,Bd4d5][%mdl 32]} Nf6 {[%emt 0:00:02]} 5. e5 {[%emt 0:00:02]} Nd5 {[%emt 0:00:01]} 6. O-O {[%emt 0:00:02]} Bg7 {[%emt 0:00:01]} 7. d4 {[%emt 0:00:01]} cxd4 {[%emt 0:00:02]} 8. cxd4 {[%emt 0:00:02]} O-O {[%emt 0:00:08]} 9. Nc3 {[%emt 0:00:02]} Nc7 {[%emt 0:00:03]} 10. Ba4 {[%emt 0:00:03]} d6 {[%emt 0:00:05]} 11. exd6 {[%emt 0:00:01]} Qxd6 {[%emt 0:00:14]} 12. d5 {[%emt 0:00:02]} Nb4 {[%emt 0:00:06]} 13. Bb3 {[%emt 0:00:10] The position is equal.} Bf5 {[%emt 0:00:14]} 14. Bg5 {[%emt 0:00:16]} Rfd8 {[%emt 0:00:15][%cal Oh7h6]} 15. Re1 {[%emt 0:00:27]} Nbxd5 {[%emt 0:00:04]} 16. Nxd5 {[%emt 0:00:10]} Nxd5 {[%emt 0:00:02]} 17. Bxe7 $1 {[%emt 0:00:07]} Nxe7 {[%emt 0:00:03]} 18. Qxd6 {[%emt 0:00:02]} Rxd6 {[%emt 0:00:01]} 19. Rxe7 {[%emt 0:00:02]} Rd7 {[%emt 0:00:14]} 20. Bxf7+ {[%emt 0:00:26]} Kf8 {[%emt 0:00:02]} 21. Rxd7 {[%emt 0:00:03]} Bxd7 {[%emt 0:00:01] A strong pair of Bishops.} 22. Rd1 {[%emt 0:00:09]} Bc6 {[%emt 0:00:23]} 23. Bb3 {[%emt 0:00:21]} Bxb2 {[%emt 0:00:02]} 24. Nd4 {[%emt 0:00:15]} Bxd4 {[%emt 0:00:07]} 25. Rxd4 $11 {[%emt 0:00:02][%mdl 4096] Endgame. KRB-KRB} Ke7 {[%emt 0:00:39]} 26. h4 {[%emt 0:00:14]} Rf8 {[%emt 0:00:12]} 27. f4 {[%emt 0:00:24]} h5 {[%emt 0:00:15]} 28. g3 {[%emt 0:00:06]} a5 {[%emt 0:00:05]} 29. Kf2 {[%emt 0:00:09]} Rf6 {[%emt 0:00:02]} 30. Ke3 {[%emt 0:00:04]} b5 {[%emt 0:00:01]} 31. a3 {[%emt 0:00:07]} Bd7 {[%emt 0:00:06]} 32. Bc2 {[%emt 0:00:03]} Rc6 {[%emt 0:00:11]} 33. Kd2 {[%emt 0:00:02]} Bf5 {[%emt 0:00:03]} 34. Bxf5 {[%emt 0:00:07][%mdl 8192] [#]} (34. Bd1 $11) 34... gxf5 {[%emt 0:00:01] Weighted Error Value: White=0.39/Black=0.03 (flawless) .  Loses game:     	White=1     	---        Inaccurate:     	White=1     	---        OK:         	White=5     	Black=9      Best:        	White=3     	---        Strong:       	White=1     	---} 0-1

[Event "XTX Markets LCC Super Blitz-S2 2024"]
[Site "London"]
[Date "2024.12.07"]
[Round "1.2"]
[White "Vitiugov, Nikita"]
[Black "Vidit, Santosh Gujrathi"]
[Result "0-1"]
[Annotator "ChessBase"]
[ECO "E60"]
[WhiteElo "2668"]
[BlackElo "2727"]
[PlyCount "212"]
[EventDate "2024.11.28"]
[EventType "tourn"]
[EventCountry "ENG"]
[SourceTitle "playchess.com"]
[Source "ChessBase"]
[SourceQuality "1"]
[TimeControl "180+2"]

1. Nf3 {[%emt 0:00:01]} c5 {[%emt 0:00:01]} 2. b3 {[%emt 0:00:04]} d5 {[%emt 0:00:04]} 3. e3 {[%emt 0:00:03]} Nf6 {[%emt 0:00:01]} 4. Bb2 {[%emt 0:00:04]} g6 {[%emt 0:00:02]} 5. c4 {[%emt 0:00:05]} dxc4 {[%emt 0:00:01]} 6. Bxc4 {[%emt 0:00:02]} Bg7 {[%emt 0:00:01]} 7. O-O {[%emt 0:00:04]} O-O {[%emt 0:00:02]} 8. d4 {[%emt 0:00:02]} cxd4 {[%emt 0:00:04]} 9. Nxd4 {[%emt 0:00:03]} Bd7 {[%emt 0:00:01]} 10. Nd2 {[%emt 0:00:02]} Nc6 {[%emt 0:00:01]} 11. N2f3 {[%emt 0:00:16]} Qa5 {[%emt 0:00:05]} 12. Qe2 {[%emt 0:00:13]} a6 {[%emt 0:00:15]} 13. h3 {[%emt 0:00:23]} b5 {[%emt 0:00:10]} 14. Nxc6 {[%emt 0:00:05]} Bxc6 {[%emt 0:00:02]} 15. Bd3 {[%emt 0:00:16]} Qb6 {[%emt 0:00:10]} 16. Ne5 {[%emt 0:00:10]} Bd5 {[%emt 0:00:11]} 17. Rac1 {[%emt 0:00:17]} Qb7 {[%emt 0:00:03]} 18. f3 {[%emt 0:00:07]} Rac8 {[%emt 0:00:23]} 19. Bd4 {[%emt 0:00:13]} Rfd8 {[%emt 0:00:11]} 20. Qb2 {[%emt 0:00:04]} Nh5 {[%emt 0:00:11]} 21. Rxc8 {[%emt 0:00:06]} Rxc8 {[%emt 0:00:02]} 22. Ng4 {[%emt 0:00:03]} f6 {[%emt 0:00:08]} 23. Rc1 {[%emt 0:00:17]} Rd8 {[%emt 0:00:03]} 24. Bf1 {[%emt 0:00:18]} Ng3 {[%emt 0:00:18]} 25. e4 {[%emt 0:00:03]} Be6 {[%emt 0:00:04]} 26. Qf2 {[%emt 0:00:12]} Nxf1 {[%emt 0:00:08]} 27. Rxf1 {[%emt 0:00:01]} a5 {[%emt 0:00:18]} 28. Bb6 {[%emt 0:00:06]} Ra8 {[%emt 0:00:04]} 29. Rc1 {[%emt 0:00:04]} Ra6 {[%emt 0:00:07]} 30. Be3 {[%emt 0:00:05]} h5 {[%emt 0:00:07]} 31. Nh2 {[%emt 0:00:01]} Rc6 {[%emt 0:00:14]} 32. Qd2 {[%emt 0:00:04]} a4 {[%emt 0:00:06]} 33. Rxc6 {[%emt 0:00:04]} Qxc6 {[%emt 0:00:01]} 34. bxa4 {[%emt 0:00:01]} bxa4 {[%emt 0:00:01]} 35. a3 {[%emt 0:00:02]} Kf7 {[%emt 0:00:08]} 36. Nf1 {[%emt 0:00:01]} Bc4 {[%emt 0:00:04]} 37. Qc1 {[%emt 0:00:04]} Bb5 {[%emt 0:00:05]} 38. Qxc6 Bxc6 {[%emt 0:00:01]} 39. Bc5 {[%emt 0:00:08]} f5 {[%emt 0:00:06]} 40. exf5 {[%emt 0:00:04]} gxf5 {[%emt 0:00:01]} 41. Kf2 {[%emt 0:00:01]} e5 {[%emt 0:00:04]} 42. Ne3 {[%emt 0:00:01]} Ke6 {[%emt 0:00:02]} 43. g3 {[%emt 0:00:01]} f4 {[%emt 0:00:07]} 44. gxf4 {[%emt 0:00:01]} exf4 {[%emt 0:00:01]} 45. Ng2 {[%emt 0:00:01]} Be5 {[%emt 0:00:02]} 46. Nh4 {[%emt 0:00:02]} Kf6 {[%emt 0:00:05]} 47. Ng2 {[%emt 0:00:01]} Bd7 {[%emt 0:00:01]} 48. h4 {[%emt 0:00:03]} Kf5 {[%emt 0:00:01]} 49. Ne1 {[%emt 0:00:02]} Bf6 {[%emt 0:00:02]} 50. Ng2 {[%emt 0:00:02]} Bb5 {[%emt 0:00:01]} 51. Bd6 {[%emt 0:00:01]} Bd4+ {[%emt 0:00:03]} 52. Ke1 {[%emt 0:00:01]} Bc6 {[%emt 0:00:04]} 53. Ke2 {[%emt 0:00:01]} Be5 {[%emt 0:00:04]} 54. Be7 {[%emt 0:00:04]} Bb5+ {[%emt 0:00:01]} 55. Kf2 {[%emt 0:00:01]} Bd4+ {[%emt 0:00:02]} 56. Ke1 {[%emt 0:00:01]} Bc3+ {[%emt 0:00:01]} 57. Kf2 {[%emt 0:00:00]} Bd2 {[%emt 0:00:02]} 58. Bd6 {[%emt 0:00:03]} Bc4 {[%emt 0:00:02]} 59. Bc7 {[%emt 0:00:03]} Bc1 {[%emt 0:00:05]} 60. Bd6 {[%emt 0:00:00]} Bd5 {[%emt 0:00:01]} 61. Ke2 {[%emt 0:00:01]} Bc6 {[%emt 0:00:02]} 62. Kf2 {[%emt 0:00:02]} Bb7 {[%emt 0:00:02]} 63. Ke2 {[%emt 0:00:02]} Ba6+ {[%emt 0:00:01]} 64. Kf2 {[%emt 0:00:01]} Bc8 {[%emt 0:00:02]} 65. Ne1 {[%emt 0:00:02]} Be3+ {[%emt 0:00:02]} 66. Kg2 {[%emt 0:00:05]} Ba6 {[%emt 0:00:03]} 67. Nc2 {[%emt 0:00:01]} Bb6 {[%emt 0:00:03]} 68. Nb4 {[%emt 0:00:01]} Bc4 {[%emt 0:00:01]} 69. Nc2 {[%emt 0:00:06]} Bb3 {[%emt 0:00:02]} 70. Ne1 {[%emt 0:00:02]} Bd8 {[%emt 0:00:03]} 71. Nd3 {[%emt 0:00:02]} Bxh4 {[%emt 0:00:03]} 72. Nxf4 {[%emt 0:00:01]} Bf7 {[%emt 0:00:03]} 73. Ne2 {[%emt 0:00:07]} Bf6 {[%emt 0:00:01]} 74. Ng3+ {[%emt 0:00:03]} Ke6 {[%emt 0:00:00]} 75. Bb4 {[%emt 0:00:01]} Bg6 {[%emt 0:00:03]} 76. Ne2 {[%emt 0:00:02]} Be5 {[%emt 0:00:01]} 77. Nc3 {[%emt 0:00:03]} Be8 {[%emt 0:00:01]} 78. Kh3 {[%emt 0:00:01]} Kf5 {[%emt 0:00:02]} 79. Kh4 {[%emt 0:00:01]} Bf6+ {[%emt 0:00:02]} 80. Kg3 {[%emt 0:00:01]} h4+ {[%emt 0:00:01]} 81. Kg2 {[%emt 0:00:01]} Bc6 {[%emt 0:00:01]} 82. Ne2 {[%emt 0:00:02]} Be5 {[%emt 0:00:02]} 83. Be7 {[%emt 0:00:01]} Bb5 {[%emt 0:00:03]} 84. Ng1 {[%emt 0:00:05]} Bf6 {[%emt 0:00:02]} 85. Bxf6 {[%emt 0:00:05]} Kxf6 {[%emt 0:00:01]} 86. Kf2 {[%emt 0:00:00]} Kf5 {[%emt 0:00:01]} 87. Ke3 {[%emt 0:00:01]} Bf1 {[%emt 0:00:02]} 88. Kf2 {[%emt 0:00:01]} Bb5 {[%emt 0:00:02]} 89. Ke3 {[%emt 0:00:01]} Bd7 {[%emt 0:00:03]} 90. Ne2 {[%emt 0:00:01]} Ke5 {[%emt 0:00:01]} 91. Nc3 {[%emt 0:00:01]} h3 {[%emt 0:00:02]} 92. Kf2 {[%emt 0:00:01]} Kd4 {[%emt 0:00:01]} 93. Ne4 {[%emt 0:00:03]} Kc4 {[%emt 0:00:03]} 94. f4 {[%emt 0:00:03]} Kd4 {[%emt 0:00:03]} 95. Nf6 {[%emt 0:00:06]} Bc8 {[%emt 0:00:03]} 96. Kg3 {[%emt 0:00:03]} Kc3 {[%emt 0:00:01]} 97. Nd5+ {[%emt 0:00:01]} Kb3 {[%emt 0:00:01]} 98. Ne7 {[%emt 0:00:02]} Bd7 {[%emt 0:00:04]} 99. f5 {[%emt 0:00:00]} Kxa3 {[%emt 0:00:01]} 100. f6 {[%emt 0:00:04]} Be8 {[%emt 0:00:02]} 101. Nc6 {[%emt 0:00:04]} Kb2 {[%emt 0:00:02]} 102. Nb4 {[%emt 0:00:02]} a3 {[%emt 0:00:03]} 103. Kxh3 {[%emt 0:00:01]} Kb3 {[%emt 0:00:01]} 104. Nd3 {[%emt 0:00:01]} Kc3 {[%emt 0:00:02]} 105. Nc1 {[%emt 0:00:01]} Bf7 {[%emt 0:00:00]} 106. Kg4 {[%emt 0:00:02]} Kd2 {[%emt 0:00:01]} 0-1

[Event "XTX Markets LCC Super Blitz-S2 2024"]
[Site "London"]
[Date "2024.12.07"]
[Round "1.3"]
[White "Adams, Michael"]
[Black "Firouzja, Alireza"]
[Result "1-0"]
[Annotator "TA"]
[ECO "C41"]
[WhiteElo "2662"]
[BlackElo "2763"]
[PlyCount "115"]
[EventDate "2024.11.28"]
[EventType "tourn"]
[EventCountry "ENG"]
[SourceTitle "playchess.com"]
[Source "ChessBase"]
[SourceQuality "1"]
[TimeControl "180+2"]

{[%evp 15,115,57,70,68,89,89,108,100,112,111,126,120,146,146,135,120,159,160,218,227,247,232,221,210,207,183,187,199,185,198,248,155,177,154,198,192,205,185,200,185,330,330,320,256,255,196,204,160,247,225,229,221,225,224,266,257,360,371,368,367,402,408,413,411,413,389,485,491,520,523,496,458,460,452,605,588,732,730,728,653,600,560,1050,1048,1027,809,921,584,500,324,1183,1134,1082,1155,1163,987,1098,389,29978,29979,29985,29986]} 1. e4 {[%emt 0:00:01]} c6 {[%emt 0:00:01]} 2. d4 {[%emt 0:00:02]} d6 {[%emt 0:00:01]} 3. Nc3 {[%emt 0:00:05]} e5 {[%emt 0:00:01]} 4. Nf3 {[%emt 0:00:01]} Nd7 {[%emt 0:00:05]} 5. Bc4 {[%emt 0:00:02]} Be7 {[%emt 0:00:01]} 6. dxe5 {[%emt 0:00:09]} dxe5 {[%emt 0:00:01]} 7. Ng5 {[%emt 0:00:09]} Bxg5 {[%emt 0:00:37]} 8. Qh5 {[%emt 0:00:01]} Qe7 {[%emt 0:00:20] [#] aiming for ...Bxc1.} 9. Qxg5 {[%emt 0:00:01]} Qxg5 {[%emt 0:00:07]} 10. Bxg5 {[%emt 0:00:02]} Nb6 {[%emt 0:00:05]} 11. Bb3 {[%emt 0:00:07] White is better.} Nf6 {[%emt 0:00:08]} 12. f3 {[%emt 0:00:07]} h6 {[%emt 0:00:08]} 13. Be3 {[%emt 0:00:01]} O-O {[%emt 0:00:12]} 14. O-O-O {[%emt 0:00:02]} Re8 {[%emt 0:00:04]} 15. Rd6 {[%emt 0:00:02]} Nh7 {[%emt 0:00:10]} 16. a4 {[%emt 0:00:11][%cal Ba2a4,Ba4a5][%mdl 32] White is much more active. The black rooks are passive.} Nf8 {[%emt 0:00:19]} (16... Be6 $16 17. Bxe6 Rxe6 18. Rxe6 fxe6) 17. a5 $18 {[%emt 0:00:03]} Nbd7 {[%emt 0:00:01]} 18. Rhd1 {[%emt 0:00:08]} h5 {[%emt 0:00:50]} 19. a6 {[%emt 0:00:19] Black must now prevent axb7.} Nb6 {[%emt 0:00:10]} 20. axb7 {Black is weak on the dark squares} Bxb7 {[%emt 0:00:01]} 21. Na4 {[%emt 0:00:13]} Nxa4 {[%emt 0:00:06]} 22. Bxa4 {[%emt 0:00:02] A strong pair of Bishops.} a5 {[%emt 0:00:05]} (22... Rec8 {was worth a try.} 23. R1d2 c5) 23. Bb3 {[%emt 0:00:20]} (23. Bxc6 Bxc6 24. Rxc6 h4) 23... a4 {[%emt 0:00:02]} 24. Bc4 {[%emt 0:00:01]} Ba6 {[%emt 0:00:03]} 25. Rxc6 {[%emt 0:00:02]} Bxc4 26. Rxc4 {[%emt 0:00:02]} Ne6 {[%emt 0:00:09]} 27. Rd3 {[%emt 0:00:01]} Rec8 {[%emt 0:00:04]} (27... Ra6 {was necessary.} 28. Kb1 Nf4) 28. Rxc8+ {[%emt 0:00:06]} Rxc8 {[%emt 0:00:01][%mdl 4096] Endgame. KRB-KRN} 29. Kb1 {[%emt 0:00:01]} f6 {[%emt 0:00:02]} 30. c3 {[%emt 0:00:02]} g5 {[%emt 0:00:02]} 31. Ka2 {[%emt 0:00:01]} Kf7 {[%emt 0:00:02]} (31... g4 $16 32. Rd7 gxf3 33. gxf3 h4) 32. Ka3 {[%emt 0:00:02]} Rb8 {[%emt 0:00:03]} 33. Rd2 {[%emt 0:00:01]} (33. Kxa4 Rxb2 34. Rd7+ Ke8 $11) 33... Ra8 {[%emt 0:00:01]} 34. Rd7+ {[%emt 0:00:10]} Kg6 {[%emt 0:00:01]} 35. Re7 {[%emt 0:00:04]} Nf4 {[%emt 0:00:05]} (35... Ra6 {was called for.} 36. c4 g4 37. fxg4 hxg4) 36. Bxf4 {[%emt 0:00:02]} exf4 {[%emt 0:00:01] KR-KR} 37. Rd7 {[%emt 0:00:05] Prevents Rd8} g4 {[%emt 0:00:02]} 38. Rd5 {[%emt 0:00:02]} Rb8 {[%emt 0:00:03]} 39. Rf5 {[%emt 0:00:02]} (39. Kxa4 Rxb2 40. fxg4 hxg4 $11) 39... Rb3+ {[%emt 0:00:02]} 40. Ka2 $1 {[%emt 0:00:00]} Rb6 {[%emt 0:00:03]} 41. fxg4 {[%emt 0:00:04]} (41. Rxf4 Rd6 42. fxg4 Kg5) 41... hxg4 {[%emt 0:00:01]} 42. Rxf4 {[%emt 0:00:01]} Kg5 {[%emt 0:00:00]} 43. Rf5+ {[%emt 0:01:31]} Kg6 {[%emt 0:00:08]} 44. h3 {[%emt 0:00:00]} (44. Ra5 Rd6 45. Rd5 (45. Rxa4 Rd2 $18) 45... Re6) 44... Re6 {[%emt 0:00:00]} 45. Rf4 {[%emt 0:00:00]} gxh3 {[%emt 0:00:00]} 46. gxh3 {[%emt 0:00:00][%cal Bg2h3,Bh3h4,Bh4h5,Bh5h6,Bh6h7][%mdl 32]} Rd6 {[%emt 0:00:00]} 47. Rg4+ {[%emt 0:00:00]} Kf7 {[%emt 0:00:02]} 48. h4 {[%emt 0:00:00]} Rd2 {[%emt 0:00:00]} 49. Ka3 {[%emt 0:00:00]} Rh2 {[%emt 0:00:06]} 50. c4 {[%emt 0:00:00]} (50. Kxa4 Rxb2 51. c4 Ke6 $18) 50... Ke6 {[%emt 0:00:00]} 51. Rf4 {[%emt 0:00:00] h5 would now be deadly.} Ke5 {[%emt 0:00:02]} 52. Rf5+ {[%emt 0:00:00]} Ke6 $2 {[%emt 0:00:01]} (52... Kd4 53. c5 (53. Kxa4 Kxc4 54. b3+ Kd4 $16) 53... Kxe4 54. Rxf6 Kd5 55. Kxa4 Kxc5 56. b4+ Kd5) 53. h5 {[%emt 0:00:00]} Rh4 {[%emt 0:00:01]} 54. Kxa4 {[%emt 0:00:00]} Rxe4 {[%emt 0:00:01]} 55. Rc5 {[%emt 0:00:00]} f5 {[%emt 0:00:01]} 56. Rc8 $2 {[%emt 0:00:00]} (56. b4 Re1 57. Rc8) 56... Ke7 $2 {[%emt 0:00:07]} (56... Kd7 $18 57. Rc5 Re2) 57. h6 {[%emt 0:00:00]} Rh4 {[%emt 0:00:03] [#]} 58. h7 $1 {Black got outplayed after the opening.   Weighted Error Value: White=0.13 (very precise) /Black=0.34.  Mistake:       	---       	Black=6      Inaccurate:     	White=1     	Black=2      OK:         	White=17    	Black=8      Best:        	White=3     	Black=2      Strong:       	White=1     	---} 1-0

[Event "XTX Markets LCC Super Blitz-S2 2024"]
[Site "London"]
[Date "2024.12.07"]
[Round "1.4"]
[White "Stefansson, Vignir Vatnar"]
[Black "Jones, Gawain C B"]
[Result "0-1"]
[Annotator "ChessBase"]
[ECO "B76"]
[WhiteElo "2537"]
[BlackElo "2639"]
[PlyCount "70"]
[EventDate "2024.11.28"]
[EventType "tourn"]
[EventCountry "ENG"]
[SourceTitle "playchess.com"]
[Source "ChessBase"]
[SourceQuality "1"]
[TimeControl "180+2"]

1. e4 {[%emt 0:00:01]} c5 {[%emt 0:00:02]} 2. Nf3 {[%emt 0:00:00]} d6 {[%emt 0:00:01]} 3. d4 {[%emt 0:00:01]} cxd4 4. Nxd4 {[%emt 0:00:01]} Nf6 {[%emt 0:00:03]} 5. Nc3 {[%emt 0:00:01]} g6 {[%emt 0:00:00]} 6. Be3 {[%emt 0:00:03]} Nc6 {[%emt 0:00:02]} 7. f3 {[%emt 0:00:03]} Bg7 {[%emt 0:00:01]} 8. Qd2 {[%emt 0:00:01]} O-O {[%emt 0:00:01]} 9. O-O-O {[%emt 0:00:02]} d5 {[%emt 0:00:01]} 10. exd5 {[%emt 0:00:02]} Nxd5 {[%emt 0:00:01]} 11. Nxc6 {[%emt 0:00:01]} bxc6 {[%emt 0:00:01]} 12. Bd4 {[%emt 0:00:01]} Nxc3 {[%emt 0:00:05]} 13. Qxc3 {[%emt 0:00:11]} Bh6+ {[%emt 0:00:01]} 14. Be3 {[%emt 0:00:01]} Bxe3+ {[%emt 0:00:02]} 15. Qxe3 {[%emt 0:00:01]} Qb6 {[%emt 0:00:01]} 16. Qc3 {[%emt 0:00:40]} Be6 {[%emt 0:00:06]} 17. Bc4 {[%emt 0:00:12]} Bxc4 {[%emt 0:00:11]} 18. Qxc4 {[%emt 0:00:01]} Rfd8 {[%emt 0:00:11]} 19. Qe2 {[%emt 0:00:11]} Qc5 {[%emt 0:00:16]} 20. Rhe1 {[%emt 0:00:34]} e6 {[%emt 0:00:05]} 21. Rxd8+ {[%emt 0:00:20]} Rxd8 {[%emt 0:02:33]} 22. Qe3 {[%emt 0:00:01]} Qd5 {[%emt 0:00:00]} 23. b3 {[%emt 0:00:01]} h5 {[%emt 0:00:00]} 24. h4 {[%emt 0:00:04]} Qa5 {[%emt 0:00:00]} 25. a4 {[%emt 0:00:08]} Qb4 {[%emt 0:00:00]} 26. Kb2 {[%emt 0:00:38]} Qxh4 {[%emt 0:00:00]} 27. Qc3 {[%emt 0:00:01]} Qf2 {[%emt 0:00:00]} 28. Re4 {[%emt 0:00:20]} Qxg2 {[%emt 0:00:00]} 29. Qxc6 {[%emt 0:00:02]} Qxf3 {[%emt 0:00:00]} 30. Qc7 {[%emt 0:00:08]} Qf6+ {[%emt 0:00:00]} 31. Ka2 {[%emt 0:00:03]} Rd1 {[%emt 0:00:00]} 32. Qe5 {[%emt 0:00:07]} Qxe5 {[%emt 0:00:00]} 33. Rxe5 {[%emt 0:00:01]} h4 {[%emt 0:00:00]} 34. c4 {[%emt 0:00:00]} h3 {[%emt 0:00:00]} 35. Re3 {[%emt 0:00:01]} h2 {[%emt 0:00:00]} 0-1

[Event "XTX Markets LCC Super Blitz-S2 2024"]
[Site "London"]
[Date "2024.12.07"]
[Round "2.1"]
[White "Vachier-Lagrave, Maxime"]
[Black "Jones, Gawain C B"]
[Result "0-1"]
[Annotator "TA"]
[ECO "C60"]
[WhiteElo "2731"]
[BlackElo "2639"]
[PlyCount "62"]
[EventDate "2024.11.28"]
[EventType "tourn"]
[EventCountry "ENG"]
[SourceTitle "playchess.com"]
[Source "ChessBase"]
[SourceQuality "1"]
[TimeControl "180+2"]

{[%evp 18,62,29,20,42,24,17,30,22,14,8,-105,-113,-139,-131,-123,34,-161,-171,-194,-206,-221,-164,-263,-242,-235,-226,-223,-242,-512,-520,-541,-527,-549,-547,-636,-662,-918,-910,-846,-798,-29963,-5975,-5031,-5014,-29991,-1254]} 1. e4 {[%emt 0:00:01]} e5 {[%emt 0:00:01]} 2. Nf3 {[%emt 0:00:02]} Nc6 {[%emt 0:00:01]} 3. Bb5 {[%emt 0:00:01]} a6 {[%emt 0:00:05]} 4. Ba4 {[%emt 0:00:01]} Nf6 {[%emt 0:00:00]} 5. O-O {[%emt 0:00:01]} d6 {[%emt 0:00:02]} 6. Re1 {[%emt 0:00:02]} Bd7 {[%emt 0:00:01]} 7. c3 {[%emt 0:00:01]} g6 {[%emt 0:00:01]} 8. d4 {[%emt 0:00:07]} Bg7 {[%emt 0:00:02]} 9. h3 {[%emt 0:00:02]} O-O {[%emt 0:00:02]} 10. Nbd2 {[%emt 0:00:05]} exd4 {[%emt 0:00:03]} 11. cxd4 {[%emt 0:00:02]} Nb4 {[%emt 0:00:01]} 12. Bxd7 {[%emt 0:00:08]} Qxd7 {[%emt 0:00:02] White has an edge.} 13. Nf1 {[%emt 0:00:01]} c5 {[%emt 0:00:09]} 14. Bd2 {[%emt 0:00:14]} (14. a3 $11 Nc6 15. d5) 14... Nd3 $17 {[%emt 0:00:08][%csl LRb2,LRe1]} 15. Re3 {[%emt 0:00:05]} Nxb2 {[%emt 0:00:07] Black has more active pieces.} 16. Qc2 {[%emt 0:00:03]} cxd4 $2 {[%emt 0:00:08]} (16... Na4 $17 {...cxd4 is the strong threat.} 17. dxc5 Nxc5) 17. Nxd4 $2 {[%emt 0:00:04] Now White is beyond hope.} (17. Ra3 $14 {is the one way to stay ahead.}) 17... Na4 $19 {[%emt 0:00:06]} 18. Nb3 {[%emt 0:00:21]} Rac8 {[%emt 0:00:06]} 19. Qd1 {[%emt 0:00:01]} Nb2 {[%emt 0:00:15]} 20. Qe2 {[%emt 0:00:02]} (20. Qf3 {is a better defense.}) 20... Nc4 {[%emt 0:00:01]} 21. Rd3 {[%emt 0:00:01]} Nxd2 {[%emt 0:00:12]} 22. Rxd2 {[%emt 0:00:18] [#]} Rfe8 $1 {[%emt 0:00:03]} 23. Ng3 {[%emt 0:00:13] [#]} (23. e5 {was necessary.}) 23... Nxe4 $1 {[%emt 0:00:07][%mdl 512]} 24. Nxe4 {[%emt 0:00:01]} Bxa1 {[%emt 0:00:02]} 25. Nxa1 {[%emt 0:00:01]} Qe6 {[%emt 0:00:26] Prevents Nf6+.} ({Weaker is} 25... Rc1+ 26. Kh2 Rxe4 (26... Rxa1 $2 27. Nf6+ Kh8 28. Nxe8 $18) 27. Qxe4 Rxa1 28. Qf4 $17) 26. f3 {[%emt 0:00:01][%cal Oe2d1]} d5 {[%emt 0:00:06]} 27. Rxd5 {[%emt 0:00:15]} Qxd5 {[%emt 0:00:10]} 28. Nf6+ {[%emt 0:00:01]} Kf8 {[%emt 0:00:02]} 29. Qb2 {[%emt 0:00:04] Prevents Rc1+} Qc5+ {[%emt 0:00:18]} 30. Kh2 {[%emt 0:00:03]} Qd6+ {[%emt 0:00:07]} 31. g3 {[%emt 0:00:03]} Re6 {[%emt 0:00:20] Weighted Error Value: White=1.18/Black=0.16 (very precise) .  Loses game:     	White=1     	---        Mistake:       	White=3     	Black=1      Inaccurate:     	White=1     	---        OK:         	White=3     	Black=8      Best:        	---       	Black=2      Brilliant:      	---       	Black=1} (31... Qxf6 $142 32. Qf2 Rc3 (32... Qxa1 {leads to mate.} 33. Kg2 Qd1 34. g4 Re2 35. Kg3 Qd6+ 36. f4 Rc3+ 37. Kh2 Qxf4+ 38. Kh1 Qxf2 39. g5 Rxh3#) 33. Kg2 Ree3 34. h4 Rxf3 (34... Qxf3+ 35. Qxf3 Rxf3 36. Nb3 Rfd3 37. h5 gxh5 38. Kh2 Rc2+ 39. Kh3 f6 40. Nc5 Rxc5 41. Kh4 Rc2 42. Kxh5 Rd4 43. Kh6 Rh2#) 35. Qe1 Rce3 (35... Rxg3+ {is a self mate.} 36. Qxg3 Rxg3+ 37. Kxg3 Qxa1 38. Kf2 Qe5 39. h5 gxh5 40. a3 h4 41. a4 h3 42. Kf3 h2 43. Kg2 Qe2+ 44. Kg3 h1=Q 45. Kf4 Qh6+ 46. Kg3 Qhh2#) 36. Qb4+ Kg8 37. Qg4 Re2+ (37... Qxa1 38. Qxf3 Qxa2+ 39. Qf2 Re2 40. Qxe2 Qxe2+ 41. Kh1 b5 42. h5 gxh5 43. Kg1 b4 44. Kh1 b3 45. Kg1 b2 46. Kh1 b1=Q#) 38. Kh3 Rxg3+ 39. Kxg3 Qf2+ 40. Kh3 Qh2#) 0-1